bitfinex/quotes_SOLUSD_20250217
["timestamp","ask_amount","ask_price","bid_price","bid_amount"]
[1739810050233,5.5691,179.56,179.53,29.51520955]
[1739810050468,5.5685,179.58,179.55,29.51520955]
[1739810050970,0.03,179.62,179.57,29.51520955]
[1739810051139,5.5676,179.61,179.58,29.51520955]
[1739810051460,0.03,179.62,179.58,29.51520955]
[1739810051670,13.41184853,179.58,179.46,29.51520955]
[1739810051980,30.55953928,179.57,179.5,29.51520955]
[1739810052159,29.51520955,179.61,179.54,29.51520955]
[1739810052341,1.04415524,179.6,179.54,29.51520955]
[1739810052562,1.04415524,179.6,179.54,47.96112386]
[1739810052985,49.0052791,179.6,179.53,47.96112386]
[1739810053165,5.5682,179.59,179.54,47.96112386]
[1739810053359,19.4887,179.59,179.53,47.96112386]
[1739810053561,47.96112386,179.56,179.49,47.96112386]
[1739810053762,49.0055362,179.55,179.49,47.96112386]
[1739810054096,47.96112386,179.57,179.51,47.96112386]
[1739810054256,49.00539601,179.56,179.5,47.96112386]
[1739810054457,47.96112386,179.52,179.46,47.96112386]
[1739810054883,47.96112386,179.49,179.44,0.03]
[1739810055073,47.96112386,179.5,179.44,47.99112386]
[1739810055271,5.5713,179.49,179.44,47.99112386]
[1739810055476,5.5713,179.49,179.45,47.96112386]
[1739810055671,47.96112386,179.55,179.48,47.96112386]
[1739810055874,49.00557752,179.55,179.49,47.96112386]
[1739810056057,13.9231,179.56,179.51,47.96112386]
[1739810056255,5.5688,179.57,179.52,47.96112386]
[1739810056561,5.5688,179.57,179.53,47.96112386]
[1739810056968,5.5688,179.57,179.52,47.96112386]
[1739810057261,5.5688,179.57,179.51,47.96112386]
[1739810057466,53.52992386,179.57,179.51,47.96112386]
[1739810057680,5.5688,179.57,179.52,47.96112386]
[1739810057893,47.96112386,179.59,179.53,47.96112386]
[1739810058073,5.5682,179.59,179.54,47.96112386]
[1739810058381,5.5682,179.59,179.55,47.96112386]
[1739810058594,5.5682,179.59,179.54,47.96112386]
[1739810058759,53.52932386,179.59,179.53,47.96112386]
[1739810059078,5.5682,179.59,179.54,47.96112386]
[1739810059789,5.5682,179.59,179.53,47.96112386]
[1739810059972,47.96112386,179.57,179.5,54.16262386]
[1739810060568,47.96112386,179.58,179.52,47.96112386]
[1739810060775,68.49413271,179.59,179.52,47.96112386]
[1739810061083,47.96112386,179.57,179.51,47.96112386]
[1739810061272,47.96112386,179.57,179.5,6.2015]
[1739810061273,47.96112386,179.55,179.49,49.48362386]
[1739810061470,47.96112386,179.55,179.49,1.5225]
[1739810061471,1.04438624,179.54,179.49,1.5225]
[1739810061803,47.96112386,179.5,179.43,47.96112386]
[1739810062096,54.57713639,179.49,179.42,47.96112386]
[1739810062475,47.96112386,179.48,179.42,47.96112386]
[1739810062781,5.5713,179.49,179.47,47.96112386]
[1739810063074,5.5713,179.49,179.43,67.96112386]
[1739810063283,47.96112386,179.48,179.42,47.96112386]
[1739810063890,19.4996,179.49,179.46,47.96112386]
[1739810063891,5.5713,179.49,179.46,47.96112386]
[1739810064190,5.5707,179.51,179.46,47.96112386]
[1739810064892,47.96112386,179.49,179.43,47.96112386]
[1739810065300,1.04464707,179.5,179.44,47.99112386]
[1739810065803,49.00577093,179.5,179.44,47.99112386]
[1739810066107,1.04464707,179.5,179.44,47.99112386]
[1739810066267,5.5707,179.51,179.47,47.96112386]
[1739810066571,5.57,179.53,179.49,47.96112386]
[1739810067171,5.57,179.53,179.48,47.96112386]
[1739810067809,5.57,179.53,179.49,47.96112386]
[1739810068482,53.53052386,179.55,179.49,47.96112386]
[1739810068698,47.96112386,179.52,179.46,47.96112386]
[1739810068864,67.45412386,179.55,179.44,0.03]
[1739810069066,5.5694,179.55,179.49,47.96112386]
[1739810069370,5.5694,179.55,179.5,47.96112386]
[1739810069594,49.00545792,179.54,179.44,0.03]
[1739810069773,47.96112386,179.54,179.47,47.96112386]
[1739810070089,47.96112386,179.54,179.44,5.6027]
[1739810070090,68.49858983,179.55,179.48,47.96112386]
[1739810070464,68.49858983,179.55,179.49,47.96112386]
[1739810070870,68.49858983,179.55,179.48,67.96112386]
[1739810071092,47.96112386,179.52,179.45,47.96112386]
[1739810071283,49.0057394,179.51,179.44,47.99112386]
[1739810071477,47.96112386,179.5,179.48,0.063]
[1739810071687,49.00586426,179.49,179.48,0.063]
[1739810072397,5.5713,179.49,179.48,0.063]
[1739810073182,6.61601141,179.49,179.48,0.063]
[1739810074377,67.9889838,179.49,179.44,0.03]
[1739810074604,29.56065294,179.46,179.44,0.03]
[1739810074889,29.56065294,179.47,179.44,0.03]
[1739810075088,50.10496435,179.49,179.44,0.03]
[1739810075606,29.56065294,179.48,179.44,0.03]
[1739810075784,1.04490434,179.47,179.44,0.03]
[1739810076103,30.60555728,179.47,179.44,0.03]
[1739810076269,42.97250147,179.48,179.44,0.03]
[1739810076474,6.61412158,179.47,179.44,0.03]
[1739810076890,5.5719,179.47,179.44,29.59065294]
[1739810077278,5.5719,179.47,179.45,29.56065294]
[1739810078482,5.571,179.5,179.46,49.56065294]
[1739810078798,5.5697,179.54,179.49,29.56065294]
[1739810079002,5.5697,179.54,179.5,29.56065294]
[1739810079595,6.61192158,179.54,179.49,29.56065294]
[1739810079790,50.09697452,179.54,179.47,29.56065294]
[1739810079977,29.56065294,179.53,179.47,29.56065294]
[1739810080177,30.60287452,179.52,179.46,29.56065294]
[1739810080392,30.60287452,179.52,179.45,29.56065294]
[1739810080595,5.5707,179.51,179.45,29.56065294]
[1739810080899,30.60287452,179.5,179.44,29.59065294]
[1739810081978,1.04222158,179.5,179.45,29.56065294]
[1739810082178,49.05815294,179.51,179.45,29.56065294]
[1739810082801,5.5713,179.49,179.45,29.56065294]
[1739810083402,5.5713,179.49,179.45,29.62365294]
[1739810084382,5.5713,179.49,179.46,29.56065294]
[1739810084682,5.5713,179.49,179.45,29.62365294]
[1739810085100,5.5713,179.49,179.46,29.56065294]
[1739810085401,5.5713,179.49,179.45,29.62365294]
[1739810085700,5.5713,179.49,179.45,0.063]
[1739810085902,5.5713,179.49,179.45,29.62365294]
[1739810086225,1.04222158,179.48,179.45,0.063]
[1739810086603,19.4996,179.49,179.45,0.063]
[1739810086796,20.54182158,179.49,179.45,0.063]
[1739810087108,20.54182158,179.49,179.45,29.62365294]
[1739810087283,6.61352158,179.49,179.45,29.62365294]
[1739810087486,5.5713,179.49,179.45,29.62365294]
[1739810087686,5.5713,179.49,179.46,29.56065294]
[1739810087881,117.88065294,179.57,179.48,29.56065294]
[1739810088099,1.04222158,179.56,179.51,29.56065294]
[1739810088285,6.61102158,179.57,179.52,29.56065294]
[1739810088607,50.09377452,179.57,179.51,29.56065294]
[1739810089108,29.56065294,179.56,179.5,29.56065294]
[1739810089409,50.09377452,179.57,179.51,29.56065294]
[1739810091010,20.53312158,179.57,179.51,29.56065294]
[1739810091888,50.09377452,179.57,179.51,29.56065294]
[1739810092091,29.56065294,179.56,179.5,29.56065294]
[1739810092418,1.04222158,179.56,179.51,29.56065294]
[1739810093181,29.56065294,179.54,179.47,29.56065294]
[1739810093408,30.60287452,179.53,179.47,29.56065294]
[1739810093782,29.56065294,179.52,179.45,29.62365294]
[1739810093986,1.04222158,179.51,179.45,29.62365294]
[1739810094913,30.60287452,179.51,179.45,29.62365294]
[1739810095404,5.571,179.5,179.45,29.62365294]
[1739810095720,5.571,179.5,179.46,29.56065294]
[1739810095913,5.571,179.5,179.45,49.62365294]
[1739810096410,5.571,179.5,179.46,29.56065294]
[1739810096602,5.571,179.5,179.47,29.56065294]
[1739810097794,5.571,179.5,179.46,29.56065294]
[1739810098288,5.571,179.5,179.47,29.56065294]
[1739810099230,14.99872158,179.52,179.47,29.56065294]
[1739810099525,5.5707,179.51,179.46,29.56065294]
[1739810100097,1.04222158,179.5,179.45,29.62365294]
[1739810100493,1.04222158,179.5,179.46,29.56065294]
[1739810100705,1.04222158,179.5,179.45,29.62365294]
[1739810100907,1.04222158,179.5,179.46,29.56065294]
[1739810101100,20.53972158,179.51,179.46,29.56065294]
[1739810101915,20.53972158,179.51,179.47,29.56065294]
[1739810102420,19.4975,179.51,179.47,29.56065294]
[1739810102832,1.04222158,179.5,179.47,29.56065294]
[1739810103294,1.04222158,179.5,179.45,29.62365294]
[1739810103498,1.04222158,179.5,179.45,0.063]
[1739810103699,5.5713,179.49,179.45,0.063]
[1739810103901,5.5713,179.49,179.45,29.62365294]
[1739810104501,19.4996,179.49,179.45,0.063]
[1739810105215,5.5713,179.49,179.45,29.62365294]
[1739810105416,5.5713,179.49,179.45,0.063]
[1739810105623,5.5719,179.47,179.45,0.063]
[1739810105920,1.04222158,179.46,179.45,0.063]
[1739810106112,5.5719,179.47,179.45,0.063]
[1739810106315,1.04222158,179.46,179.45,0.063]
[1739810106704,44.01472305,179.46,179.45,0.0001]
[1739810107124,44.01472305,179.46,179.44,0.0001]
[1739810107335,42.97250147,179.45,179.44,0.0001]
[1739810107504,13.41184853,179.44,179.35,29.56065294]
[1739810107701,29.56065294,179.41,179.35,29.56065294]
[1739810108015,1.04222158,179.4,179.35,29.56065294]
[1739810109619,5.5744,179.39,179.35,29.56065294]
[1739810111618,1.04222158,179.38,179.35,29.56065294]
[1739810112004,30.60287452,179.38,179.33,49.62365294]
[1739810112204,30.60287452,179.38,179.33,20.063]
[1739810112624,29.56065294,179.36,179.33,0.063]
[1739810112803,30.60287452,179.35,179.33,0.063]
[1739810113122,42.97250147,179.34,179.33,0.0001]
[1739810113536,29.56065294,179.34,179.33,0.0001]
[1739810113903,36.17887452,179.34,179.33,0.0001]
[1739810115217,49.59072305,179.34,179.33,0.0001]
[1739810115546,36.17887452,179.34,179.33,0.0001]
[1739810116824,36.17887452,179.34,179.32,0.03]
[1739810116825,13.41184853,179.33,179.31,0.0001]
[1739810117008,44.01472305,179.32,179.3,0.0001]
[1739810117208,29.56065294,179.31,179.3,0.0001]
[1739810118131,5.5769,179.31,179.3,0.0001]
[1739810118323,6.61912158,179.31,179.3,0.0001]
[1739810118502,49.59162305,179.31,179.3,0.0001]
[1739810118708,38.54058014,179.31,179.3,0.0001]
[1739810122430,5.5769,179.31,179.3,0.0001]
[1739810122837,25.12873161,179.31,179.3,0.0001]
[1739810123044,38.54058014,179.31,179.3,0.0001]
[1739810124631,49.64622591,179.31,179.3,0.0001]
[1739810124937,6.61912158,179.31,179.3,0.0001]
[1739810125537,5.5769,179.31,179.3,0.0001]
[1739810126136,1.04222158,179.31,179.3,0.0001]
[1739810126338,44.06932591,179.31,179.3,0.0001]
[1739810126719,45.67982591,179.31,179.3,0.0001]
[1739810126924,52.21376955,179.31,179.3,0.0001]
[1739810127434,13.41184853,179.3,179.27,0.0001]
[1739810127638,13.41184853,179.27,179.26,0.0001]
[1739810127843,30.65747738,179.27,179.26,0.0001]
[1739810128016,44.06932591,179.27,179.26,0.0001]
[1739810128348,49.64742591,179.27,179.26,0.0001]
[1739810129243,36.23557738,179.27,179.26,0.0001]
[1739810129933,6.62032158,179.27,179.26,0.0001]
[1739810130135,5.5781,179.27,179.26,0.0001]
[1739810130451,5.5769,179.31,179.26,29.6153558]
[1739810130617,5.5769,179.31,179.28,29.6152558]
[1739810131157,5.5769,179.31,179.29,29.6152558]
[1739810131352,5.5769,179.31,179.28,29.6152558]
[1739810131515,1.04222158,179.3,179.26,1.5984]
[1739810131715,1.04222158,179.3,179.26,0.0001]
[1739810131716,29.6152558,179.28,179.26,0.0001]
[1739810131928,1.04222158,179.27,179.26,0.0001]
[1739810132153,32.93104853,179.31,179.26,0.0001]
[1739810132154,29.6152558,179.29,179.26,0.0001]
[1739810132329,35.1930558,179.28,179.26,0.0001]
[1739810132534,29.6152558,179.27,179.26,0.0001]
[1739810133824,43.02710433,179.27,179.26,0.0001]
[1739810134450,48.60520433,179.27,179.26,0.0001]
[1739810136931,35.1933558,179.27,179.26,0.0001]
[1739810138237,48.60520433,179.27,179.26,0.0001]
[1739810138620,20.0,179.24,179.16,1.5558]
[1739810138959,29.6152558,179.23,179.17,29.6152558]
[1739810139340,29.6152558,179.2,179.16,1.5558]
[1739810139659,29.6152558,179.2,179.15,29.6152558]
[1739810140266,29.6152558,179.19,179.13,29.6152558]
[1739810140554,29.6152558,179.21,179.15,29.6152558]
[1739810140756,5.5803,179.2,179.16,29.6152558]
[1739810141258,5.5803,179.2,179.17,29.6152558]
[1739810141423,19.5311,179.2,179.16,29.6152558]
[1739810141623,19.5311,179.2,179.15,29.6152558]
[1739810142245,29.6152558,179.19,179.13,29.6152558]
[1739810142651,29.6152558,179.2,179.14,29.6152558]
[1739810142858,19.5322,179.19,179.14,29.6152558]
[1739810143075,49.1474558,179.19,179.13,29.6152558]
[1739810143278,19.5322,179.19,179.14,29.6152558]
[1739810144139,19.5322,179.19,179.15,29.6152558]
[1739810144355,19.5322,179.19,179.14,29.6152558]
[1739810144661,19.5322,179.19,179.15,29.6152558]
[1739810144961,19.5322,179.19,179.14,29.6152558]
[1739810145143,29.6152558,179.18,179.12,31.1597558]
[1739810145548,10.0,179.14,179.12,31.1597558]
[1739810145749,4.82,179.13,179.12,31.1597558]
[1739810146660,4.82,179.13,179.12,1.5445]
[1739810146967,5.5825,179.13,179.12,0.03]
[1739810147846,5.5825,179.13,179.1,19.6752558]
[1739810148248,5.5825,179.13,179.09,29.6152558]
[1739810148649,19.5388,179.13,179.08,29.6152558]
[1739810148850,19.5388,179.13,179.09,29.6152558]
[1739810149250,13.9563,179.13,179.09,29.6152558]
[1739810149870,13.9563,179.13,179.07,6.4819]
[1739810150051,13.9563,179.13,179.09,29.6152558]
[1739810150882,5.5822,179.14,179.1,29.6152558]
[1739810151086,5.5822,179.14,179.11,29.6152558]
[1739810151256,13.9544,179.16,179.11,29.6152558]
[1739810151456,19.536,179.16,179.11,29.6152558]
[1739810151989,49.1512558,179.16,179.1,29.6152558]
[1739810152575,38.07402519,179.16,179.1,18.53802519]
[1739810153276,18.53802519,179.15,179.09,18.53802519]
[1739810154280,18.53802519,179.14,179.08,18.53802519]
[1739810154681,18.53802519,179.14,179.09,18.53802519]
[1739810155080,18.53802519,179.14,179.08,18.53802519]
[1739810156574,19.5388,179.13,179.08,18.53802519]
[1739810156759,38.07682519,179.13,179.07,25.01992519]
[1739810156955,19.5388,179.13,179.08,18.53802519]
[1739810157155,5.5825,179.13,179.09,18.53802519]
[1739810157357,5.5825,179.13,179.1,18.53802519]
[1739810158678,5.5819,179.15,179.1,18.53802519]
[1739810159974,5.5819,179.15,179.11,18.53802519]
[1739810160174,5.5819,179.15,179.13,18.53802519]
[1739810160376,33.4858,179.18,179.1,20.0]
[1739810160557,18.53802519,179.16,179.11,18.53802519]
[1739810160754,18.53802519,179.14,179.08,18.53802519]
[1739810161058,18.53802519,179.13,179.07,18.53802519]
[1739810161259,18.53802519,179.14,179.09,18.53802519]
[1739810161478,38.07462519,179.15,179.09,18.53802519]
[1739810161656,18.53802519,179.14,179.08,18.53802519]
[1739810162472,18.53802519,179.1,179.03,6.404]
[1739810162675,18.53802519,179.1,179.04,18.53802519]
[1739810162968,5.5837,179.09,179.04,18.53802519]
[1739810163172,5.5837,179.09,179.01,18.53802519]
[1739810163173,18.53802519,179.07,179.01,18.53802519]
[1739810164359,18.53802519,179.08,179.02,18.53802519]
[1739810164674,18.53802519,179.08,179.03,18.53802519]
[1739810164873,19.94579217,179.14,179.0,10.0]
[1739810164874,18.53802519,179.05,179.0,10.0]
[1739810165064,18.53802519,179.02,179.0,10.0]
[1739810165259,18.53802519,179.01,179.0,10.0]
[1739810165476,18.53802519,179.01,178.95,0.03]
[1739810165658,18.53802519,178.99,178.95,0.03]
[1739810166153,18.53802519,179.0,178.95,0.03]
[1739810166354,18.53802519,179.01,178.95,18.56802519]
[1739810166573,18.53802519,179.02,178.96,18.53802519]
[1739810166855,13.9637,179.04,179.01,18.53802519]
[1739810167201,5.5847,179.06,179.02,18.53802519]
[1739810167479,5.5847,179.06,179.04,18.53802519]
[1739810167683,5.5834,179.1,179.05,18.53802519]
[1739810167867,5.5834,179.1,179.07,18.53802519]
[1739810168059,5.5834,179.1,179.06,18.53802519]
[1739810168259,18.53802519,179.07,179.01,18.53802519]
[1739810168476,18.53802519,179.05,178.99,18.53802519]
[1739810168667,18.53802519,179.03,178.98,18.53802519]
[1739810168873,24.12392519,179.02,178.96,24.67322519]
[1739810169067,24.12392519,179.02,178.95,0.03]
[1739810169068,18.53802519,179.01,178.95,18.56802519]
[1739810169493,5.5859,179.02,178.98,18.53802519]
[1739810169785,18.53802519,179.0,178.95,18.56802519]
[1739810170090,38.08882519,179.02,178.96,18.53802519]
[1739810170265,19.5508,179.02,178.97,18.53802519]
[1739810170467,19.5508,179.02,178.98,18.53802519]
[1739810170468,5.5859,179.02,178.98,18.53802519]
[1739810170978,18.53802519,179.04,178.98,18.53802519]
[1739810171282,18.53802519,179.03,178.97,18.53802519]
[1739810171462,18.53802519,179.04,178.98,18.53802519]
[1739810171863,18.53802519,179.01,178.95,0.03]
[1739810172164,18.53802519,178.99,178.95,0.03]
[1739810172685,18.53802519,178.98,178.95,0.03]
[1739810172990,5.5865,179.0,178.97,18.53802519]
[1739810173170,5.5853,179.04,178.99,18.53802519]
[1739810173370,5.5853,179.04,179.0,18.53802519]
[1739810173583,38.08662519,179.04,178.98,18.53802519]
[1739810173970,5.5853,179.04,179.01,18.53802519]
[1739810174167,5.5853,179.04,179.03,18.53802519]
[1739810174367,5.5853,179.04,179.02,18.53802519]
[1739810174571,5.5853,179.04,179.0,18.53802519]
[1739810174903,5.5853,179.04,179.01,18.53802519]
[1739810175192,5.5847,179.06,179.01,18.53802519]
[1739810175378,5.5847,179.06,179.05,18.53802519]
[1739810175895,5.5834,179.1,179.05,18.53802519]
[1739810176190,5.5834,179.1,179.07,18.53802519]
[1739810176487,24.12142519,179.1,179.04,18.53802519]
[1739810176788,5.5822,179.14,179.08,18.53802519]
[1739810176991,0.063,179.15,179.1,18.53802519]
[1739810177291,0.063,179.15,179.04,1.6577]
[1739810177292,5.6449,179.15,179.11,18.53802519]
[1739810177479,5.6449,179.15,179.12,18.53802519]
[1739810177677,0.063,179.15,179.14,18.53802519]
[1739810179674,0.063,179.15,179.12,18.53802519]
[1739810180272,18.53802519,179.14,179.04,14.63512897]
[1739810180484,18.53802519,179.14,179.08,18.53802519]
[1739810180700,18.60102519,179.15,179.1,18.53802519]
[1739810180897,18.60102519,179.15,179.09,18.53802519]
[1739810181288,5.5822,179.14,179.09,18.53802519]
[1739810182076,5.5822,179.14,179.11,18.53802519]
[1739810182884,0.063,179.15,179.05,0.86737235]
[1739810182885,0.063,179.15,179.13,18.53802519]
[1739810183192,0.063,179.15,179.14,18.53802519]
[1739810183602,0.063,179.15,179.13,18.53802519]
[1739810183990,0.063,179.15,179.08,5.584]
[1739810183991,0.063,179.15,179.14,18.53802519]
[1739810184707,0.063,179.15,179.14,29.6407098]
[1739810185202,0.063,179.15,179.14,35.2229098]
[1739810185406,13.9452,179.28,179.14,49.47169206]
[1739810185615,13.9452,179.28,179.24,29.6407098]
[1739810185616,5.5781,179.27,179.24,29.6407098]
[1739810185903,49.1642098,179.27,179.21,29.6407098]
[1739810186104,29.6407098,179.25,179.16,20.0]
[1739810186310,29.6407098,179.25,179.19,29.6407098]
[1739810186895,29.6407098,179.26,179.2,29.6407098]
[1739810187303,49.1665098,179.25,179.19,29.6407098]
[1739810187514,29.6407098,179.24,179.18,29.6407098]
[1739810188112,29.6407098,179.22,179.16,49.6407098]
[1739810188509,29.6407098,179.24,179.18,29.6407098]
[1739810188699,49.1665098,179.25,179.19,29.6407098]
[1739810189523,19.5258,179.25,179.2,29.6407098]
[1739810189691,29.6407098,179.24,179.18,29.6407098]
[1739810190408,19.5258,179.25,179.2,29.6407098]
[1739810190619,5.5788,179.25,179.21,29.6407098]
[1739810190835,5.5788,179.25,179.2,29.6407098]
[1739810190993,5.5788,179.25,179.16,20.83700135]
[1739810191323,29.6407098,179.22,179.13,8.1012]
[1739810191488,5.58,179.21,179.18,29.6407098]
[1739810192111,5.58,179.21,179.17,29.6407098]
[1739810192419,5.58,179.21,179.18,29.6407098]
[1739810193192,49.1708098,179.21,179.16,29.6407098]
[1739810193396,49.1708098,179.21,179.09,1.5819]
[1739810193397,29.6407098,179.19,179.09,1.5819]
[1739810193698,5.5809,179.18,179.16,29.6407098]
[1739810194116,5.5809,179.18,179.15,29.6407098]
[1739810194413,5.5809,179.18,179.16,29.6407098]
[1739810194598,5.5803,179.2,179.16,29.6407098]
[1739810194793,5.5803,179.2,179.17,29.6407098]
[1739810195012,5.5803,179.2,179.16,29.6407098]
[1739810195520,5.5794,179.23,179.19,29.6407098]
[1739810195706,0.063,179.22,179.2,29.6407098]
[1739810196201,0.063,179.22,179.21,29.6407098]
[1739810196607,0.063,179.22,179.21,30.47740071]
[1739810197591,0.063,179.31,179.24,20.0]
[1739810197797,0.063,179.31,179.29,29.6407098]
[1739810197997,0.063,179.31,179.28,29.6407098]
[1739810198192,0.063,179.31,179.26,29.6407098]
[1739810198617,29.6407098,179.28,179.22,49.6407098]
[1739810198916,29.6407098,179.26,179.2,29.6407098]
[1739810199091,29.6407098,179.25,179.19,29.6407098]
[1739810199520,5.5788,179.25,179.2,29.6407098]
[1739810200818,5.5788,179.25,179.21,29.6407098]
[1739810201117,5.5788,179.25,179.2,29.6407098]
[1739810202531,43.5862098,179.27,179.21,29.6407098]
[1739810203022,29.6407098,179.26,179.2,29.6407098]
[1739810203404,29.6407098,179.24,179.18,29.6407098]
[1739810203719,29.6407098,179.23,179.17,29.6407098]
[1739810204033,29.6407098,179.22,179.16,29.6407098]
[1739810204221,29.6407098,179.2,179.14,29.6407098]
[1739810204697,5.5806,179.19,179.14,29.6407098]
[1739810204898,5.5806,179.19,179.15,49.6407098]
[1739810205629,29.6407098,179.21,179.15,49.6407098]
[1739810205822,5.5797,179.22,179.17,29.6407098]
[1739810206623,29.6407098,179.25,179.19,29.6407098]
[1739810206804,5.5791,179.24,179.2,29.6407098]
[1739810207127,5.5791,179.24,179.19,29.6407098]
[1739810207298,49.1675098,179.24,179.18,29.6407098]
[1739810207500,29.6407098,179.23,179.17,29.6407098]
[1739810208210,49.1675098,179.24,179.18,29.6407098]
[1739810208525,29.6407098,179.23,179.17,29.6407098]
[1739810209142,0.063,179.22,179.17,29.6407098]
[1739810209425,19.592,179.22,179.17,29.6407098]
[1739810210522,29.6407098,179.18,179.13,0.03]
[1739810211202,19.592,179.22,179.13,0.03]
[1739810211203,29.6407098,179.19,179.13,29.6707098]
[1739810211534,5.5809,179.18,179.13,29.6707098]
[1739810211929,35.2216098,179.18,179.13,0.03]
[1739810212338,5.5809,179.18,179.13,29.6707098]
[1739810212507,35.2216098,179.18,179.13,0.03]
[1739810212708,29.6407098,179.17,179.13,0.03]
[1739810213121,35.2216098,179.18,179.13,0.03]
[1739810213933,5.5809,179.18,179.14,29.6407098]
[1739810214634,5.5809,179.18,179.14,18.53033462]
[1739810215332,5.5809,179.18,179.15,18.53033462]
[1739810215626,5.58,179.21,179.17,18.53033462]
[1739810215834,5.58,179.21,179.19,18.53033462]
[1739810216039,0.063,179.22,179.2,18.53033462]
[1739810216207,0.063,179.22,179.18,18.53033462]
[1739810216527,18.59333462,179.22,179.16,18.53033462]
[1739810216727,18.53033462,179.21,179.13,0.03]
[1739810216904,18.53033462,179.21,179.15,18.53033462]
[1739810217104,18.59333462,179.22,179.16,18.53033462]
[1739810217306,18.59333462,179.22,179.17,18.53033462]
[1739810217520,18.59333462,179.22,179.16,18.53033462]
[1739810218732,38.06043462,179.21,179.15,18.53033462]
[1739810219536,38.06043462,179.21,179.16,18.53033462]
[1739810220360,19.5301,179.21,179.16,18.53033462]
[1739810220514,19.5301,179.21,179.16,18.56033462]
[1739810220710,38.06043462,179.21,179.16,0.03]
[1739810221017,18.53033462,179.18,179.16,0.03]
[1739810221230,18.53033462,179.17,179.16,0.03]
[1739810221420,26.0604,179.21,179.16,0.03]
[1739810221620,19.5301,179.21,179.16,18.56033462]
[1739810221910,19.5301,179.21,179.17,18.53033462]
[1739810222221,0.063,179.22,179.2,18.53033462]
[1739810222429,0.063,179.22,179.21,18.53033462]
[1739810222936,0.063,179.22,179.18,20.0]
[1739810223112,0.063,179.22,179.16,2.513341]
[1739810223113,0.063,179.22,179.21,18.53033462]
[1739810223728,0.063,179.22,179.21,0.83668299]
[1739810224039,0.063,179.22,179.21,18.53033462]
[1739810225041,0.063,179.22,179.16,1.6764]
[1739810225228,18.59333462,179.22,179.16,18.56033462]
[1739810225721,18.53033462,179.19,179.16,0.03]
[1739810226039,18.53033462,179.17,179.16,0.03]
[1739810226243,18.53033462,179.19,179.16,0.03]
[1739810226454,18.53033462,179.21,179.16,0.03]
[1739810226643,18.53033462,179.2,179.16,0.03]
[1739810226824,24.11093462,179.19,179.16,0.03]
[1739810227148,18.53033462,179.18,179.16,0.03]
[1739810227353,18.53033462,179.17,179.16,0.03]
[1739810228334,18.53033462,179.18,179.16,0.03]
[1739810228732,24.11093462,179.19,179.16,0.03]
[1739810229156,5.5806,179.19,179.16,0.03]
[1739810229463,24.11093462,179.19,179.16,0.03]
[1739810229745,18.53033462,179.18,179.16,0.03]
[1739810229957,18.53033462,179.17,179.16,0.03]
[1739810231634,24.11153462,179.17,179.16,0.03]
[1739810233321,38.06473462,179.17,179.13,0.03]
[1739810233515,18.53033462,179.14,179.04,20.16643462]
[1739810233820,18.53033462,179.09,179.04,18.53033462]
[1739810234019,18.53033462,179.11,179.05,18.56033462]
[1739810234450,18.53033462,179.09,179.05,0.03]
[1739810234742,18.53033462,179.1,179.05,0.03]
[1739810235113,18.53033462,179.09,179.05,0.03]
[1739810235459,5.584,179.08,179.05,0.03]
[1739810237661,18.53033462,179.11,179.05,18.56033462]
[1739810237826,19.5388,179.13,179.08,18.53033462]
[1739810238526,5.5825,179.13,179.09,18.53033462]
[1739810239565,5.5825,179.13,179.08,18.53033462]
[1739810239741,18.53033462,179.11,179.05,0.03]
[1739810239923,18.53033462,179.09,179.05,0.03]
[1739810240830,18.53033462,179.08,179.05,0.03]
[1739810241329,18.53033462,179.07,179.05,0.03]
[1739810241648,18.53033462,179.08,179.05,0.03]
[1739810241853,18.53033462,179.09,179.05,0.03]
[1739810242527,9.97,179.05,179.03,18.53033462]
[1739810243737,9.97,179.05,179.04,18.53033462]
[1739810244459,9.97,179.05,179.02,20.0]
[1739810244771,9.97,179.05,179.04,18.53033462]
[1739810244949,15.555,179.05,179.04,18.53033462]
[1739810245264,15.555,179.05,179.03,18.53033462]
[1739810245773,15.555,179.05,179.04,18.53033462]
[1739810246440,15.555,179.05,178.99,7.8302]
[1739810246773,5.585,179.05,179.04,8.56033462]
[1739810247074,5.585,179.05,179.03,18.53033462]
[1739810247371,5.585,179.05,179.04,18.53033462]